lending/lending_fUSD_20240705
["ID","MTS","AMOUNT","RATE_DAILY","PERIOD"]
[331297011,1720195848469,-153.859601,0.0002288,7]
[331297012,1720195848479,-153.859601,0.0002288,7]
[331297013,1720195848488,-151.0,0.0002288,7]
[331297014,1720195848497,-151.0,0.0002288,7]
[331297015,1720195848507,-151.0,0.0002288,7]
[331297016,1720195848516,-208.575726,0.0002288,7]
[331297017,1720195848526,-208.575726,0.0002288,7]
[331297018,1720195848536,-151.0,0.0002288,7]
[331297019,1720195848546,-151.0,0.0002288,7]
[331297020,1720195848555,-151.0,0.0002288,7]
[331297021,1720195848565,-151.0,0.0002288,7]
[331297022,1720195848574,-151.0,0.0002288,7]
[331297023,1720195848586,-151.0,0.0002288,7]
[331297024,1720195848596,-151.0,0.0002288,7]
[331297025,1720195848606,-151.0,0.0002288,7]
[331297026,1720195848616,-151.0,0.0002288,7]
[331297027,1720195848626,-151.0,0.0002288,7]
[331297028,1720195848636,-151.0,0.0002288,7]
[331297029,1720195848645,-204.133716,0.0002288,7]
[331297030,1720195848655,-204.133716,0.0002288,7]
[331297031,1720195848665,-763.875433,0.0002288,7]
[331297032,1720195848674,-763.875433,0.0002288,7]
[331297033,1720195848684,-151.0,0.0002288,7]
[331297034,1720195848694,-684.255836,0.0002288,7]
[331297035,1720195848704,-151.0,0.0002288,7]
[331297036,1720195848714,-221.28589,0.0002288,7]
[331297037,1720195848723,-684.255836,0.0002288,7]
[331297038,1720195848734,-151.0,0.0002288,7]
[331297039,1720195848743,-221.28589,0.0002288,7]
[331297040,1720195848753,-151.0,0.0002288,7]
[331297041,1720195848763,-151.0,0.0002288,7]
[331297042,1720195848773,-212.750336,0.0002288,7]
[331297043,1720195848782,-212.750336,0.0002288,7]
[331297044,1720195848792,-201.187176,0.0002288,7]
[331297045,1720195848802,-201.187176,0.0002288,7]
[331297046,1720195848811,-170.510906,0.0002288,7]
[331297047,1720195848821,-151.0,0.0002288,7]
[331297048,1720195848832,-170.510906,0.0002288,7]
[331297049,1720195848842,-152.338468,0.0002288,7]
[331297050,1720195848852,-1273.685163,0.0002288,7]
[331297051,1720195848861,-1273.685163,0.0002288,7]
[331297052,1720195848877,-151.0,0.0002288,7]
[331297053,1720195848891,-151.0,0.0002288,7]
[331297054,1720195848901,-364.259432,0.0002288,7]
[331297055,1720195848911,-265.37674,0.0002288,7]
[331297056,1720195848921,-364.259432,0.0002288,7]
[331297057,1720195848931,-265.37674,0.0002288,7]
[331297058,1720195848941,-151.0,0.0002288,7]
[331297059,1720195848952,-151.0,0.0002288,7]
[331297060,1720195848961,-151.0,0.0002288,7]
[331297061,1720195848971,-151.0,0.0002288,7]
[331297062,1720195848981,-155.31474536,0.0002289,2]
[331297063,1720195848991,-3611.30193234,0.0002289,2]
[331297064,1720195849000,-2000.0,0.000229,2]
[331297065,1720195849009,-200.0,0.0002298,2]
[331297066,1720195849018,-13519.5195182,0.00022984,2]
[331297067,1720195849028,-1743.1339361,0.00022984,2]
[331297068,1720195849038,-934.6072546,0.00022984,2]
[331297069,1720195849048,-150.0,0.00022985,10]
[331297070,1720195849058,-150.0,0.00022985,10]
[331297071,1720195849073,-151.0,0.00022986,7]
[331297072,1720195849090,-151.0,0.00022986,7]
[331297073,1720195849101,-151.0,0.00022986,7]
[331297074,1720195849113,-151.0,0.00022986,7]
[331297075,1720195849122,-151.0,0.00022986,7]
[331297076,1720195849132,-203.919275,0.00022986,7]
[331297077,1720195849142,-318.809361,0.00022986,7]
[331297078,1720195849153,-318.809361,0.00022986,7]
[331297079,1720195849163,-318.809361,0.00022986,7]
[331297080,1720195849172,-318.809361,0.00022986,7]
[331297081,1720195849182,-153.859601,0.00022986,7]
[331297082,1720195849192,-153.859601,0.00022986,7]
[331297083,1720195849201,-153.859601,0.00022986,7]
[331297084,1720195849210,-153.859601,0.00022986,7]
[331297085,1720195849219,-151.0,0.00022986,7]
[331297086,1720195849228,-151.0,0.00022986,7]
[331297087,1720195849238,-194.990158,0.00022986,7]
[331297088,1720195849266,-151.0,0.00022986,7]
[331297089,1720195849276,-208.575726,0.00022986,7]
[331297090,1720195849287,-191.5203,0.00022986,7]
[331297091,1720195849298,-208.575726,0.00022986,7]
[331297092,1720195849308,-208.575726,0.00022986,7]
[331297093,1720195849318,-208.575726,0.00022986,7]
[331297094,1720195849330,-151.0,0.00022986,7]
[331297095,1720195849340,-151.0,0.00022986,7]
[331297096,1720195849350,-151.0,0.00022986,7]
[331297097,1720195849361,-151.0,0.00022986,7]
[331297098,1720195849370,-151.0,0.00022986,7]
[331297099,1720195849380,-151.0,0.00022986,7]
[331297100,1720195849390,-151.0,0.00022986,7]
[331297101,1720195849400,-268.665504,0.00022986,7]
[331297102,1720195849410,-151.0,0.00022986,7]
[331297103,1720195849522,-234.004614,0.00022986,7]
[331297104,1720195849535,-151.0,0.00022986,7]
[331297105,1720195849544,-151.0,0.00022986,7]
[331297106,1720195849554,-251.804527,0.00022986,7]
[331297107,1720195849563,-151.0,0.00022986,7]
[331297108,1720195849573,-151.0,0.00022986,7]
[331297109,1720195849584,-151.0,0.00022986,7]
[331297110,1720195849593,-151.0,0.00022986,7]
[331297111,1720195849603,-151.0,0.00022986,7]
[331297112,1720195849612,-204.133716,0.00022986,7]
[331297113,1720195849622,-204.133716,0.00022986,7]
[331297114,1720195849633,-204.133716,0.00022986,7]
[331297115,1720195849642,-204.133716,0.00022986,7]
[331297116,1720195849651,-763.875433,0.00022986,7]
[331297118,1720195849660,-763.875433,0.00022986,7]
[331297120,1720195849670,-763.875433,0.00022986,7]
[331297122,1720195849679,-763.875433,0.00022986,7]
[331297124,1720195849688,-151.0,0.00022986,7]
[331297125,1720195849697,-151.0,0.00022986,7]
[331297126,1720195849706,-151.0,0.00022986,7]
[331297127,1720195849716,-151.0,0.00022986,7]
[331297128,1720195849725,-684.255836,0.00022986,7]
[331297129,1720195849735,-684.255836,0.00022986,7]
[331297130,1720195849744,-151.0,0.00022986,7]
[331297131,1720195849753,-233.48208,0.00022986,7]
[331297132,1720195849762,-221.28589,0.00022986,7]
[331297133,1720195849772,-221.28589,0.00022986,7]
[331297134,1720195849782,-684.255836,0.00022986,7]
[331297135,1720195849791,-684.255836,0.00022986,7]
[331297136,1720195849800,-151.0,0.00022986,7]
[331297137,1720195849809,-151.0,0.00022986,7]
[331297138,1720195849819,-221.28589,0.00022986,7]
[331297139,1720195849830,-221.28589,0.00022986,7]
[331297140,1720195849839,-151.0,0.00022986,7]
[331297141,1720195849849,-151.0,0.00022986,7]
[331297142,1720195849859,-151.0,0.00022986,7]
[331297143,1720195849869,-151.0,0.00022986,7]
[331297144,1720195849878,-212.750336,0.00022986,7]
[331297145,1720195849888,-212.750336,0.00022986,7]
[331297146,1720195849897,-212.750336,0.00022986,7]
[331297147,1720195849907,-212.750336,0.00022986,7]
[331297148,1720195849917,-201.187176,0.00022986,7]
[331297149,1720195849926,-201.187176,0.00022986,7]
[331297150,1720195849936,-201.187176,0.00022986,7]
[331297151,1720195849945,-201.187176,0.00022986,7]
[331297152,1720195849955,-170.510906,0.00022986,7]
[331297153,1720195849964,-170.510906,0.00022986,7]
[331297154,1720195849974,-151.0,0.00022986,7]
[331297155,1720195849983,-151.0,0.00022986,7]
[331297156,1720195849993,-170.510906,0.00022986,7]
[331297157,1720195850002,-170.510906,0.00022986,7]
[331297158,1720195850011,-5030.527336,0.00022986,7]
[331297159,1720195850021,-1273.685163,0.00022986,7]
[331297160,1720195850030,-1273.685163,0.00022986,7]
[331297161,1720195850040,-1273.685163,0.00022986,7]
[331297162,1720195850049,-1273.685163,0.00022986,7]
[331297163,1720195850059,-151.0,0.00022986,7]
[331297164,1720195850073,-151.0,0.00022986,7]
[331297165,1720195850085,-151.0,0.00022986,7]
[331297166,1720195850095,-151.0,0.00022986,7]
[331297167,1720195850104,-364.259432,0.00022986,7]
[331297168,1720195850115,-364.259432,0.00022986,7]
[331297169,1720195850124,-265.37674,0.00022986,7]
[331297170,1720195850133,-265.37674,0.00022986,7]
[331297171,1720195850144,-364.259432,0.00022986,7]
[331297172,1720195850153,-364.259432,0.00022986,7]
[331297173,1720195850162,-265.37674,0.00022986,7]
[331297174,1720195850171,-265.37674,0.00022986,7]
[331297175,1720195850181,-151.0,0.00022986,7]
[331297176,1720195850190,-151.0,0.00022986,7]
[331297177,1720195850199,-151.0,0.00022986,7]
[331297178,1720195850208,-151.0,0.00022986,7]
[331297179,1720195850218,-151.0,0.00022986,7]
[331297180,1720195850227,-198.517829,0.00022986,7]
[331297181,1720195850237,-291.447783,0.00022986,7]
[331297182,1720195850248,-110717.0,0.00022986,2]
[331297183,1720195850257,-73059.0,0.00022986,2]
[331297184,1720195850266,-114782.0,0.00022986,2]
[331297185,1720195850276,-183.26655665,0.00022989,10]
[331297186,1720195850285,-662882.54082579,0.0002299,5]
[331297187,1720195850669,-442.08322332,0.0002,2]
[331297188,1720195850678,-442.08322332,0.0002,2]
[331297189,1720195850688,-992.57555336,0.0002299,5]
[331297190,1720195850702,-5873.17031662,0.0002299,5]
[331297191,1720195853626,-155.14159365,0.00013999,2]
[331297192,1720195853635,-145.67756851,0.00014733,2]
[331297193,1720195853682,-4.32243149,0.00014733,2]
[331297194,1720195853707,-150.0,0.00014734,2]
[331297195,1720195853716,-150.0,0.00014736,2]
[331297196,1720195853726,-150.0,0.00014741,2]
[331297197,1720195853735,-150.0,0.00014747,2]
[331297198,1720195853744,-150.0,0.00014755,2]
[331297199,1720195853754,-150.0,0.00014766,2]
[331297200,1720195853763,-150.0,0.00014772,2]
[331297201,1720195853773,-150.0,0.00014777,2]
[331297202,1720195853782,-150.0,0.00014783,2]
[331297203,1720195853791,-150.0,0.00014791,2]
[331297204,1720195853800,-150.0,0.00014797,2]
[331297205,1720195853810,-150.0,0.00014804,2]
[331297206,1720195853819,-150.0,0.00014822,2]
[331297207,1720195853828,-150.0,0.00014829,2]
[331297208,1720195853838,-150.0,0.00014832,2]
[331297209,1720195853847,-150.0,0.00014835,2]
[331297210,1720195853860,-150.0,0.00014843,2]
[331297211,1720195853869,-150.0,0.00014845,2]
[331297212,1720195853879,-138.22465742,0.00014867,2]
[331297215,1720196082302,629.0,0.00025,60]
[331297216,1720196094172,2432.50735589,0.00011199,2]
[331297217,1720196268379,552.57239721,0.00011199,2]
[331297218,1720196336852,12282.55495953,0.00011199,2]
[331297219,1720196380726,227.17477303,0.00011199,2]
[331297220,1720196445380,2001.83991641,0.00011199,2]
[331297222,1720196629820,156.39149463,0.00011199,2]
[331297226,1720196710680,222.8249572,0.00011199,2]
[331297230,1720196725593,651.29314333,0.00011199,2]
[331297256,1720196880792,174.58594608,0.00011199,2]
[331297259,1720196895746,227.17477303,0.00011199,2]
[331297282,1720197035235,-155.95069396,0.00012302,2]
[331297285,1720197035244,-296.13915688,0.00012302,2]
[331297288,1720197035256,-1302.86269743,0.00012302,2]
[331297289,1720197035265,-88.57384379,0.00013128,2]
[331297297,1720197035618,-568.27237892,0.00012202,2]
[331297298,1720197035630,-10905.90770126,0.00013128,2]
[331297299,1720197035639,-1334.00714204,0.00013472,2]
[331297300,1720197035648,-1647.44876845,0.00013482,2]
[331297301,1720197035658,-1647.44876844,0.00013482,2]
[331297302,1720197035667,-254.25713924,0.00013516,2]
[331297303,1720197035676,-227.17477303,0.00013543,2]
[331297304,1720197035686,-520.06850352,0.00013543,2]
[331297305,1720197035695,-12897.35578713,0.00013574,2]
[331297306,1720197035704,-3022.81708204,0.00013849,2]
[331297307,1720197035715,-11.77534258,0.00014867,2]
[331297308,1720197035725,-150.99,0.00014904,2]
[331297309,1720197035735,-1807.6124017,0.00015,2]
[331297310,1720197035745,-193.62934922,0.00015479,2]
[331297311,1720197035755,-1398.95077001,0.00015579,2]
[331297312,1720197035764,-194.02066443,0.00015579,2]
[331297313,1720197035774,-159.81206704,0.00015579,2]
[331297314,1720197035783,-380.58928978,0.00015579,2]
[331297315,1720197035792,-275.68718642,0.00015832,2]
[331297316,1720197035801,-155.0,0.00015832,2]
[331297317,1720197035813,-381.0,0.00016115,2]
[331297318,1720197035822,-9999.99,0.00016116,2]
[331297319,1720197035832,-608.40050944,0.00016315,2]
[331297320,1720197035841,-623.19345683,0.00016315,2]
[331297321,1720197035851,-155.0,0.00016699,2]
[331297322,1720197035860,-2494.89645951,0.00017199,2]
[331297323,1720197035872,-443.97,0.00017303,2]
[331297324,1720197035882,-370.52360019,0.00018,2]
[331297325,1720197035891,-600.315,0.0001801,2]
[331297326,1720197035900,-200.0,0.0001802,2]
[331297327,1720197035910,-16636.85245905,0.0001802,2]
[331297328,1720197035923,-8017.09860326,0.0001802,2]
[331297329,1720197035933,-169.85882371,0.0001802,2]
[331297332,1720197035942,-5813.64923086,0.0001802,2]
[331297335,1720197035952,-1633.0,0.000182,5]
[331297338,1720197035962,-10000.0,0.00018914,2]
[331297341,1720197035972,-10000.0,0.00018962,2]
[331297345,1720197035985,-5000.0,0.00019,2]
[331297348,1720197035995,-164.81,0.00019016,30]
[331297350,1720197036004,-407.54,0.000191,2]
[331297351,1720197036014,-167.0,0.00019226,2]
[331297352,1720197036023,-200.0,0.00019284,2]
[331297353,1720197036032,-195.46431379,0.00019299,2]
[331297354,1720197036041,-250.0,0.00019382,2]
[331297355,1720197036051,-1937.04,0.00019419,2]
[331297356,1720197036060,-250.0,0.00019493,2]
[331297357,1720197036069,-2500.0,0.000195,2]
[331297358,1720197036080,-366.19666682,0.00019565,2]
[331297359,1720197036090,-443.97,0.00019567,2]
[331297360,1720197036101,-176.5,0.00019578,2]
[331297361,1720197036112,-2000.0,0.0001959,3]
[331297362,1720197036124,-250.0,0.00019622,2]
[331297363,1720197036133,-227.07,0.00019748,2]
[331297364,1720197036143,-1000.0,0.0001977,2]
[331297365,1720197036152,-167.0,0.00019861,2]
[331297366,1720197036162,-154.59,0.00019897,2]
[331297367,1720197036172,-327.37681566,0.0002,2]
[331297368,1720197036183,-1250.0,0.0002,2]
[331297369,1720197036192,-389.03323652,0.0002,2]
[331297370,1720197036201,-389.03323652,0.0002,2]
[331297371,1720197036211,-389.03323652,0.0002,2]
[331297372,1720197036220,-389.03323652,0.0002,2]
[331297373,1720197036229,-389.03323652,0.0002,2]
[331297374,1720197036238,-389.03323652,0.0002,2]
[331297375,1720197036247,-389.03323652,0.0002,2]
[331297376,1720197036257,-389.03323652,0.0002,2]
[331297377,1720197036266,-389.03323652,0.0002,2]
[331297378,1720197036276,-389.03323652,0.0002,2]
[331297379,1720197036285,-389.03323652,0.0002,2]
[331297380,1720197036294,-389.03323652,0.0002,2]
[331297381,1720197036303,-389.03323652,0.0002,2]
[331297382,1720197036312,-154.59,0.0002007,2]
[331297383,1720197036321,-1070.0,0.00020078,2]
[331297384,1720197036330,-5809.0,0.00020078,2]
[331297385,1720197036340,-5176.0,0.00020078,2]
[331297386,1720197036349,-291.0,0.00020078,2]
[331297387,1720197036358,-1196.0,0.00020078,2]
[331297388,1720197036372,-3061.2239,0.00020143,2]
[331297389,1720197036381,-154.59,0.00020243,2]
[331297390,1720197036391,-154.59,0.00020416,2]
[331297391,1720197036401,-167.0,0.00020496,2]
[331297392,1720197036411,-154.59,0.00020588,2]
[331297393,1720197036420,-154.59,0.00020761,2]
[331297394,1720197036429,-154.59,0.00020934,2]
[331297395,1720197036438,-4417.99,0.00020951,2]
[331297396,1720197036455,-225.33520988,0.00021,2]
[331297397,1720197036466,-167.0,0.0002113,2]
[331297398,1720197036476,-300.0,0.0002137,2]
[331297399,1720197036486,-150.0,0.0002137,2]
[331297400,1720197036498,-150.0,0.0002137,2]
[331297401,1720197036508,-184.3,0.00021644,2]
[331297402,1720197036520,-340.05,0.00021644,2]
[331297403,1720197036534,-167.0,0.00021765,2]
[331297404,1720197036546,-443.97,0.00021831,2]
[331297405,1720197036555,-174.23,0.00021918,2]
[331297406,1720197036566,-241.97,0.00021918,2]
[331297407,1720197036576,-150.0,0.00021918,2]
[331297408,1720197036586,-793.21748259,0.00022,2]
[331297409,1720197036596,-1300.0,0.00022,2]
[331297410,1720197036606,-300.0,0.00022192,2]
[331297411,1720197036621,-164.9,0.00022192,2]
[331297412,1720197036632,-164.9,0.00022192,2]
[331297413,1720197036641,-164.9,0.00022192,2]
[331297414,1720197036651,-329.1,0.00022192,2]
[331297415,1720197036660,-164.9,0.00022192,2]
[331297416,1720197036670,-329.8,0.00022192,2]
[331297417,1720197036680,-150.0,0.00022192,2]
[331297418,1720197036690,-846.78,0.00022192,2]
[331297419,1720197036700,-423.74,0.00022192,2]
[331297420,1720197036710,-2041.0,0.000222,2]
[331297421,1720197036719,-1000.0,0.00022241,2]
[331297422,1720197036729,-167.0,0.00022399,2]
[331297423,1720197036738,-3227.48661171,0.00022404,2]
[331297424,1720197036748,-854.33,0.00022466,2]
[331297425,1720197036757,-854.33,0.00022466,2]
[331297426,1720197036767,-419.14,0.00022466,2]
[331297427,1720197036776,-854.33,0.00022466,2]
[331297428,1720197036785,-419.14,0.00022466,2]
[331297429,1720197036795,-419.14,0.00022466,2]
[331297430,1720197036804,-854.33,0.00022466,2]
[331297431,1720197036814,-854.33,0.00022466,2]
[331297432,1720197036825,-1706.77,0.00022466,2]
[331297433,1720197036836,-500.0,0.00022493,2]
[331297434,1720197036845,-150.0,0.00022495,2]
[331297435,1720197036854,-169.80600212,0.00022677,2]
[331297436,1720197036863,-1976.53,0.00022686,2]
[331297437,1720197036885,-165.3153,0.00022686,2]
[331297438,1720197036895,-1251.2596,0.00022686,2]
[331297439,1720197036904,-26434.3915,0.00022686,2]
[331297440,1720197036914,-4527.0996,0.00022691,2]
[331297441,1720197036924,-344.28606759,0.00022702,2]
[331297442,1720197036934,-2469.488,0.00022707,2]
[331297443,1720197036944,-150.0,0.00022711,2]
[331297444,1720197036953,-150.0,0.00022716,2]
[331297445,1720197036963,-150.0,0.00022717,2]
[331297446,1720197036972,-150.0,0.00022719,2]
[331297447,1720197036982,-150.0,0.00022729,2]
[331297448,1720197036991,-169.80600208,0.0002273,2]
[331297449,1720197037000,-150.0,0.00022735,2]
[331297450,1720197037010,-150.0,0.00022748,2]
[331297451,1720197037140,-150.0,0.00022756,2]
[331297452,1720197037150,-11683.32736513,0.00022759,2]
[331297453,1720197037160,-490.15302,0.0002276,2]
[331297454,1720197037169,-150.0,0.00022764,2]
[331297455,1720197037178,-150.0,0.00022765,2]
[331297456,1720197037187,-150.0,0.00022765,2]
[331297457,1720197037197,-150.0,0.00022766,2]
[331297458,1720197037206,-150.0,0.00022766,2]
[331297459,1720197037217,-77744.7957826,0.00022766,3]
[331297460,1720197037227,-150.83,0.00022766,2]
[331297461,1720197037236,-150.0,0.00022772,2]
[331297462,1720197037246,-150.0,0.00022773,2]
[331297463,1720197037257,-230038.9337,0.00022776,2]
[331297464,1720197037268,-150.0,0.00022783,2]
[331297465,1720197037284,-169.80600208,0.00022784,2]
[331297466,1720197037294,-150.0,0.00022784,2]
[331297467,1720197037304,-5191.2482,0.00022786,2]
[331297468,1720197037314,-150.0,0.00022787,2]
[331297469,1720197037323,-150.0,0.00022788,2]
[331297470,1720197037332,-150.0,0.00022791,2]
[331297471,1720197037342,-150.0,0.00022792,2]
[331297472,1720197037351,-150.0,0.00022799,2]
[331297473,1720197037360,-1173.0,0.000228,2]
[331297474,1720197037375,-150.0,0.00022801,2]
[331297475,1720197037384,-150.0,0.00022804,2]
[331297476,1720197037394,-150.0,0.00022808,2]
[331297477,1720197037403,-150.0,0.00022812,2]
[331297478,1720197037416,-150.0,0.00022813,2]
[331297479,1720197037426,-150.0,0.00022822,2]
[331297480,1720197037435,-150.0,0.00022824,2]
[331297481,1720197037447,-150.0,0.00022827,2]
[331297482,1720197037457,-8638.31064251,0.00022829,3]
[331297483,1720197037467,-150.0,0.00022836,2]
[331297484,1720197037477,-169.80600208,0.00022837,2]
[331297485,1720197037487,-150.0,0.00022837,2]
[331297486,1720197037497,-150.0,0.00022839,2]
[331297487,1720197037506,-150.0,0.00022844,2]
[331297488,1720197037518,-150.0,0.00022846,2]
[331297489,1720197037531,-150.0,0.00022848,2]
[331297490,1720197037542,-150.0,0.0002285,2]
[331297491,1720197037552,-198.00670023,0.00022851,2]
[331297492,1720197037562,-150.0,0.00022851,2]
[331297493,1720197037572,-150.0,0.00022852,2]
[331297494,1720197037582,-150.0,0.00022852,2]
[331297495,1720197037591,-150.0,0.00022853,2]
[331297496,1720197037601,-150.0,0.00022853,2]
[331297497,1720197037611,-150.0,0.00022854,2]
[331297498,1720197037627,-8638.31064251,0.00022856,3]
[331297499,1720197037637,-22191.8834527,0.00022856,3]
[331297500,1720197037646,-11095.9417264,0.00022858,3]
[331297501,1720197037656,-150.0,0.0002286,2]
[331297502,1720197037666,-55479.7086319,0.0002286,3]
[331297503,1720197037676,-150.83,0.0002286,2]
[331297504,1720197037685,-150.0,0.00022862,2]
[331297505,1720197037695,-150.0,0.00022863,2]
[331297506,1720197037706,-34553.24257,0.00022866,3]
[331297507,1720197037715,-150.0,0.00022867,2]
[331297508,1720197037725,-8638.31064251,0.00022869,3]
[331297509,1720197037735,-150.0,0.00022869,2]
[331297510,1720197037744,-500.92296281,0.00022869,2]
[331297511,1720197037754,-500.0,0.00022869,2]
[331297512,1720197037764,-322.7430439,0.00022869,2]
[331297513,1720197037774,-500.0,0.00022869,2]
[331297514,1720197037784,-500.0,0.00022869,2]
[331297515,1720197037793,-500.0,0.00022869,2]
[331297516,1720197037803,-500.0,0.00022869,2]
[331297517,1720197037813,-458.60550049,0.00022869,2]
[331297518,1720197037822,-500.0,0.00022869,2]
[331297519,1720197037832,-500.0,0.00022869,2]
[331297520,1720197037841,-500.0,0.00022869,2]
[331297521,1720197037851,-500.0,0.00022869,2]
[331297522,1720197037861,-500.0,0.00022869,2]
[331297523,1720197037876,-183.9174526,0.00022869,2]
[331297524,1720197037886,-500.0,0.00022869,2]
[331297525,1720197037896,-500.0,0.00022869,2]
[331297526,1720197037907,-341.32006171,0.00022869,2]
[331297527,1720197037917,-500.0,0.00022869,2]
[331297528,1720197037927,-150.0,0.0002287,2]
[331297529,1720197037937,-120936.348995,0.0002287,3]
[331297530,1720197037947,-150.83,0.0002287,2]
[331297531,1720197037957,-150.0,0.00022872,2]
[331297532,1720197037968,-150.0,0.00022875,2]
[331297533,1720197037978,-150.0,0.00022875,2]
[331297534,1720197037988,-150.0,0.00022876,2]
[331297535,1720197037998,-150.0,0.00022876,2]
[331297536,1720197038008,-150.0,0.00022879,2]
[331297537,1720197038018,-150.0,0.0002288,2]
[331297538,1720197038028,-122055.35899,0.0002288,3]
[331297541,1720197038039,-150.83,0.0002288,2]
[331297544,1720197038049,-447.1143,0.0002288,2]
[331297546,1720197038059,-169.08322514,0.00022884,2]
[331297548,1720197038069,-150.0,0.00022885,2]
[331297550,1720197038079,-150.0,0.00022886,2]
[331297553,1720197038088,-11095.9417264,0.00022889,3]
[331297555,1720197038098,-150.0,0.00022889,2]
[331297556,1720197038108,-164.32613462,0.0002289,2]
[331297557,1720197038119,-7200.22830914,0.0002289,2]
[331297558,1720197038128,-150.0,0.0002289,2]
[331297559,1720197038138,-11362.71239461,0.0002289,2]
[331297560,1720197038148,-169.88866675,0.0002289,2]
[331297561,1720197038159,-322.57961181,0.0002289,2]
[331297562,1720197038170,-169.80600208,0.0002289,2]
[331297563,1720197038180,-366.74562026,0.0002289,2]
[331297564,1720197038190,-188.0894751,0.0002289,4]
[331297565,1720197038200,-998.93537444,0.0002289,2]
[331297566,1720197038210,-881.4147,0.0002289,2]
[331297567,1720197038220,-45063.2457209,0.0002289,2]
[331297568,1720197038234,-307.8334,0.0002289,2]
[331297569,1720197038247,-3111.40281369,0.0002289,2]
[331297570,1720197038259,-876.11960137,0.0002289,2]
[331297571,1720197038270,-84292.09396052,0.0002289,2]
[331297572,1720197038282,-83871.10830352,0.0002289,2]
[331297573,1720197038292,-7500.0,0.0002289,2]
[331297574,1720197038302,-150.0,0.00022891,2]
[331297575,1720197038312,-150.0,0.00022896,2]
[331297576,1720197038322,-150.0,0.00022897,2]
[331297577,1720197038332,-150.0,0.00022898,2]
[331297578,1720197038341,-2000.0,0.000229,2]
[331297579,1720197038351,-259.0,0.000229,2]
[331297580,1720197038362,-150.0,0.00022904,2]
[331297581,1720197038377,-150.0,0.00022913,2]
[331297582,1720197038387,-150.0,0.00022915,2]
[331297583,1720197038398,-150.0,0.0002292,2]
[331297584,1720197038408,-150.0,0.00022921,2]
[331297585,1720197038419,-150.0,0.00022924,2]
[331297586,1720197038429,-150.0,0.00022924,2]
[331297587,1720197038438,-150.0,0.0002293,2]
[331297588,1720197038452,-150.0,0.00022934,2]
[331297589,1720197038463,-150.0,0.00022947,2]
[331297590,1720197038473,-150.0,0.0002295,2]
[331297591,1720197038483,-150.0,0.00022961,2]
[331297592,1720197038495,-150.0,0.00022964,2]
[331297594,1720197038505,-150.0,0.00022965,2]
[331297595,1720197038515,-150.0,0.00022967,2]
[331297596,1720197038526,-150.0,0.00022967,2]
[331297597,1720197038537,-150.0,0.00022968,2]
[331297598,1720197038547,-150.0,0.0002297,2]
[331297599,1720197038558,-150.0,0.00022972,2]
[331297600,1720197038568,-150.0,0.00022973,2]
[331297601,1720197038578,-150.0,0.00022973,2]
[331297602,1720197038587,-11095.9417264,0.00022974,3]
[331297603,1720197038597,-150.0,0.00022976,2]
[331297604,1720197038606,-150.0,0.00022976,2]
[331297605,1720197038618,-77671.5920846,0.0002298,3]
[331297606,1720197038628,-150.83,0.0002298,2]
[331297607,1720197038638,-150.83,0.0002298,2]
[331297608,1720197038648,-150.83,0.0002298,2]